fUST/lending_fUST_20251020
["ID","MTS","AMOUNT","RATE_DAILY","PERIOD"]
[391892803,1760959844697,-520.57572328,0.00033941,5]
[391892804,1760959844712,-635.74130108,0.00033941,5]
[391892805,1760959844726,-2068.1875177,0.00033951,2]
[391892806,1760959844740,-37729.6474764,0.00033951,2]
[391892807,1760959844755,-39670.7558937,0.00033951,2]
[391892808,1760959844769,-1365.398947,0.00033951,2]
[391892809,1760959844783,-418.9131429,0.00033951,2]
[391892810,1760959844797,-159.10792,0.00033951,30]
[391892811,1760959844811,-153.752609,0.00033951,30]
[391892812,1760959844826,-151.0,0.00033951,30]
[391892813,1760959844840,-153.752609,0.00033951,30]
[391892814,1760959844856,-151.0,0.00033951,30]
[391892815,1760959844869,-153.752609,0.00033951,30]
[391892816,1760959844884,-151.0,0.00033951,30]
[391892817,1760959844898,-153.752609,0.00033951,30]
[391892818,1760959844913,-151.0,0.00033951,30]
[391892819,1760959844928,-151.0,0.00033951,30]
[391892820,1760959844943,-151.0,0.00033951,30]
[391892821,1760959844957,-151.0,0.00033951,30]
[391892822,1760959844972,-180.969693,0.00033951,30]
[391892823,1760959844987,-180.969693,0.00033951,30]
[391892824,1760959845001,-180.969693,0.00033951,30]
[391892825,1760959845017,-180.969693,0.00033951,30]
[391892826,1760959845032,-7832.9391623,0.00033951,2]
[391892827,1760959845047,-151.0,0.00033957,30]
[391892828,1760959845061,-151.0,0.00033957,30]
[391892829,1760959845075,-213.3186526,0.00033957,30]
[391892830,1760959845089,-151.37473815,0.00033957,30]
[391892831,1760959845253,-500.0,0.00033957,30]
[391892832,1760959845263,-500.0,0.00033957,30]
[391892833,1760959845273,-151.0,0.00033957,30]
[391892834,1760959845283,-500.0,0.00033957,30]
[391892835,1760959845294,-500.0,0.00033957,30]
[391892836,1760959845303,-151.0,0.00033957,30]
[391892837,1760959845313,-500.0,0.00033957,30]
[391892838,1760959845323,-500.0,0.00033957,30]
[391892839,1760959845332,-500.0,0.00033957,30]
[391892840,1760959845341,-151.0,0.00033957,30]
[391892841,1760959845350,-151.0,0.00033957,30]
[391892842,1760959845359,-151.0,0.00033957,30]
[391892843,1760959845368,-272.99309488,0.00033957,30]
[391892844,1760959845377,-242.22859,0.00033957,30]
[391892845,1760959845386,-212.10558,0.00033957,30]
[391892846,1760959845395,-744.84740603,0.00033957,14]
[391892847,1760959845404,-159.128,0.00033962,2]
[391892848,1760959845413,-559.63839702,0.00033973,5]
[391892849,1760959845423,-502.79717437,0.00033973,5]
[391892850,1760959845433,-500.0,0.00033973,5]
[391892851,1760959845444,-500.0,0.00033973,5]
[391892852,1760959845454,-500.0,0.00033973,5]
[391892853,1760959845463,-500.0,0.00033973,5]
[391892854,1760959845473,-151.0,0.00033988,2]
[391892855,1760959845483,-151.0,0.00033988,30]
[391892856,1760959845492,-166.544519,0.00033988,30]
[391892857,1760959845501,-151.0,0.00033988,30]
[391892858,1760959845511,-166.544519,0.00033988,30]
[391892859,1760959845520,-151.0,0.00033988,30]
[391892860,1760959845530,-166.544519,0.00033988,30]
[391892861,1760959845540,-229.470551,0.00033988,30]
[391892862,1760959845549,-166.544519,0.00033988,30]
[391892863,1760959845558,-151.0,0.00033988,30]
[391892864,1760959845569,-151.0,0.00033988,30]
[391892865,1760959845579,-151.0,0.00033988,30]
[391892866,1760959845588,-151.0,0.00033988,30]
[391892867,1760959845598,-151.0,0.00033988,30]
[391892868,1760959845607,-220.519447,0.00033988,30]
[391892869,1760959845617,-220.519447,0.00033988,30]
[391892870,1760959845626,-220.519447,0.00033988,30]
[391892871,1760959845635,-220.519447,0.00033988,30]
[391892872,1760959845644,-151.0,0.00033988,30]
[391892873,1760959845653,-151.0,0.00033988,30]
[391892874,1760959845663,-501.806734,0.00033988,30]
[391892875,1760959845672,-501.806734,0.00033988,30]
[391892876,1760959845681,-496.657153,0.00033988,30]
[391892877,1760959845690,-501.806734,0.00033988,30]
[391892878,1760959845700,-496.657153,0.00033988,30]
[391892879,1760959845709,-151.0,0.00033988,30]
[391892880,1760959845718,-501.806734,0.00033988,30]
[391892881,1760959845727,-496.657153,0.00033988,30]
[391892882,1760959845740,-496.657153,0.00033988,30]
[391892883,1760959845749,-151.0,0.00033988,30]
[391892884,1760959845758,-155.877407,0.00033988,30]
[391892885,1760959845767,-783.0,0.00033991,2]
[391892886,1760959845776,-23359.43527763,0.00034,7]
[391892887,1760959845785,-402.9601108,0.00034,10]
[391892888,1760959845795,-151.0,0.00034,30]
[391892889,1760959845804,-151.0,0.00034,30]
[391892890,1760959845813,-151.0,0.00034,30]
[391892891,1760959845823,-151.0,0.00034,30]
[391892892,1760959845832,-1090.923273,0.00034,30]
[391892893,1760959845842,-151.0,0.00034,30]
[391892894,1760959845851,-1090.923273,0.00034,30]
[391892895,1760959845861,-151.0,0.00034,30]
[391892896,1760959845871,-1090.923273,0.00034,30]
[391892897,1760959845880,-1090.923273,0.00034,30]
[391892899,1760959845889,-151.0,0.00034,30]
[391892901,1760959845898,-151.0,0.00034,30]
[391892902,1760959845907,-151.0,0.00034,30]
[391892903,1760959845916,-173.402367,0.00034,30]
[391892904,1760959845924,-173.402367,0.00034,30]
[391892905,1760959845933,-173.402367,0.00034,30]
[391892906,1760959845942,-173.402367,0.00034,30]
[391892907,1760959845951,-151.0,0.00034,30]
[391892908,1760959845962,-151.0,0.00034,30]
[391892909,1760959845972,-151.0,0.00034,30]
[391892910,1760959845983,-151.0,0.00034,2]
[391892911,1760959845993,-177.750339,0.00034,30]
[391892912,1760959846002,-177.750339,0.00034,30]
[391892913,1760959846011,-177.750339,0.00034,30]
[391892914,1760959846020,-177.750339,0.00034,30]
[391892915,1760959846029,-151.0,0.00034,30]
[391892916,1760959846039,-151.0,0.00034,30]
[391892917,1760959846048,-151.0,0.00034,30]
[391892918,1760959846057,-151.0,0.00034,30]
[391892919,1760959846067,-151.0,0.00034,30]
[391892920,1760959846077,-151.0,0.00034,30]
[391892921,1760959846087,-151.0,0.00034,30]
[391892922,1760959846097,-151.0,0.00034,30]
[391892923,1760959846106,-183.026705,0.00034,30]
[391892924,1760959846115,-151.0,0.00034,30]
[391892925,1760959846124,-151.0,0.00034,30]
[391892926,1760959846133,-151.0,0.00034,30]
[391892927,1760959846143,-151.0,0.00034,30]
[391892928,1760959846152,-151.0,0.00034,30]
[391892929,1760959846161,-1141.907673,0.00034,30]
[391892930,1760959846170,-169.790875,0.00034,30]
[391892931,1760959846180,-151.0,0.00034,30]
[391892932,1760959846189,-1141.907673,0.00034,30]
[391892933,1760959846198,-151.0,0.00034,30]
[391892934,1760959846208,-163.487828,0.00034,30]
[391892935,1760959846217,-1141.907673,0.00034,30]
[391892936,1760959846227,-151.0,0.00034,30]
[391892937,1760959846237,-1141.907673,0.00034,30]
[391892938,1760959846247,-192.259718,0.00034,30]
[391892939,1760959846257,-151.0,0.00034,30]
[391892940,1760959846266,-192.259718,0.00034,30]
[391892941,1760959846276,-151.0,0.00034,30]
[391892942,1760959846285,-205.28185,0.00034,30]
[391892943,1760959846295,-151.0,0.00034,30]
[391892944,1760959846304,-192.259718,0.00034,30]
[391892945,1760959846314,-151.0,0.00034,30]
[391892946,1760959846323,-205.28185,0.00034,30]
[391892947,1760959846332,-151.0,0.00034,30]
[391892948,1760959846341,-192.259718,0.00034,30]
[391892949,1760959846350,-205.28185,0.00034,30]
[391892950,1760959846361,-151.0,0.00034,30]
[391892951,1760959846370,-205.28185,0.00034,30]
[391892952,1760959846379,-151.0,0.00034,30]
[391892953,1760959846388,-151.0,0.00034,30]
[391892954,1760959846397,-256.031148,0.00034,30]
[391892955,1760959846406,-256.031148,0.00034,30]
[391892956,1760959846416,-256.031148,0.00034,30]
[391892957,1760959846425,-256.031148,0.00034,30]
[391892958,1760959846435,-153.752609,0.00034,30]
[391892959,1760959846444,-151.0,0.00034,30]
[391892960,1760959846453,-153.752609,0.00034,30]
[391892961,1760959846461,-151.0,0.00034,30]
[391892962,1760959846470,-153.752609,0.00034,30]
[391892963,1760959846479,-151.0,0.00034,30]
[391892964,1760959846488,-153.752609,0.00034,30]
[391892965,1760959846497,-151.0,0.00034,30]
[391892966,1760959846507,-151.0,0.00034,30]
[391892967,1760959846515,-151.0,0.00034,30]
[391892968,1760959846525,-151.0,0.00034,30]
[391892969,1760959846534,-180.969693,0.00034,30]
[391892970,1760959846543,-153.973046,0.00034,30]
[391892971,1760959846552,-180.969693,0.00034,30]
[391892972,1760959846562,-180.969693,0.00034,30]
[391892973,1760959846575,-180.969693,0.00034,30]
[391892974,1760959846585,-151.0,0.00034,30]
[391892975,1760959846594,-151.0,0.00034,30]
[391892976,1760959846603,-151.0,0.00034,30]
[391892977,1760959846614,-151.0,0.00034,30]
[391892978,1760959846623,-151.0,0.00034,30]
[391892979,1760959846632,-151.0,0.00034,30]
[391892980,1760959846643,-261.384855,0.00034,30]
[391892981,1760959846652,-799.886058,0.00034,30]
[391892982,1760959846660,-261.384855,0.00034,30]
[391892983,1760959846669,-261.384855,0.00034,30]
[391892984,1760959846678,-799.886058,0.00034,30]
[391892985,1760959846688,-151.0,0.00034,30]
[391892986,1760959846696,-799.886058,0.00034,30]
[391892987,1760959846705,-261.384855,0.00034,30]
[391892988,1760959846714,-151.0,0.00034,30]
[391892989,1760959846723,-799.886058,0.00034,30]
[391892990,1760959846731,-151.0,0.00034,30]
[391892991,1760959846741,-10000.0,0.00034,30]
[391892992,1760959846750,-10000.0,0.00034,30]
[391892993,1760959846759,-10000.0,0.00034,30]
[391892994,1760959846768,-10000.0,0.00034,30]
[391892995,1760959846777,-10000.0,0.00034,30]
[391892996,1760959846787,-151.244164,0.00034,30]
[391892997,1760959846796,-151.0,0.00034,30]
[391892998,1760959846805,-211.958132,0.00034,30]
[391892999,1760959846814,-211.958132,0.00034,30]
[391893000,1760959846823,-211.958132,0.00034,30]
[391893001,1760959846832,-151.0,0.00034,30]
[391893002,1760959846841,-211.958132,0.00034,30]
[391893003,1760959846850,-151.0,0.00034,30]
[391893004,1760959846858,-151.0,0.00034,30]
[391893005,1760959846867,-151.0,0.00034,30]
[391893006,1760959846876,-151.0,0.00034,30]
[391893007,1760959846885,-151.0,0.00034,30]
[391893008,1760959846894,-1483.852699,0.00034,30]
[391893009,1760959846903,-1483.852699,0.00034,30]
[391893010,1760959846912,-1483.852699,0.00034,30]
[391893011,1760959846921,-1638.368023,0.00034,30]
[391893012,1760959846930,-1483.852699,0.00034,30]
[391893013,1760959846940,-1638.368023,0.00034,30]
[391893014,1760959846949,-233.337158,0.00034,2]
[391893015,1760959846958,-1638.368023,0.00034,30]
[391893016,1760959846968,-151.0,0.00034,30]
[391893017,1760959846977,-1638.368023,0.00034,30]
[391893018,1760959846987,-151.0,0.00034,30]
[391893019,1760959846995,-151.0,0.00034,30]
[391893020,1760959847005,-553.943476,0.00034,30]
[391893021,1760959847014,-151.0,0.00034,30]
[391893022,1760959847023,-553.943476,0.00034,30]
[391893023,1760959847032,-553.943476,0.00034,30]
[391893024,1760959847042,-151.0,0.00034,30]
[391893025,1760959847051,-553.943476,0.00034,30]
[391893026,1760959847060,-249.018806,0.00034,30]
[391893027,1760959847069,-151.0,0.00034,30]
[391893028,1760959847078,-151.0,0.00034,30]
[391893029,1760959847087,-151.0,0.00034,30]
[391893030,1760959847096,-152.764304,0.00034,30]
[391893031,1760959847105,-151.0,0.00034,30]
[391893032,1760959847114,-152.094428,0.00034,30]
[391893033,1760959847124,-151.0,0.00034,30]
[391893034,1760959847133,-203.456997,0.00034,30]
[391893035,1760959847142,-151.0,0.00034,30]
[391893036,1760959847152,-203.456997,0.00034,30]
[391893037,1760959847266,-151.0,0.00034,30]
[391893038,1760959847278,-203.456997,0.00034,30]
[391893039,1760959847288,-151.0,0.00034,30]
[391893040,1760959847297,-203.456997,0.00034,30]
[391893041,1760959847307,-535.344894,0.00034,30]
[391893042,1760959847316,-151.0,0.00034,30]
[391893043,1760959847325,-151.0,0.00034,30]
[391893044,1760959847335,-535.344894,0.00034,30]
[391893045,1760959847344,-151.0,0.00034,30]
[391893046,1760959847353,-535.344894,0.00034,30]
[391893047,1760959847362,-535.344894,0.00034,30]
[391893048,1760959847371,-222.651136,0.00034,30]
[391893049,1760959847379,-222.651136,0.00034,30]
[391893050,1760959847388,-151.0,0.00034,30]
[391893051,1760959847397,-222.651136,0.00034,30]
[391893052,1760959847406,-222.651136,0.00034,30]
[391893053,1760959847415,-151.0,0.00034,30]
[391893054,1760959847425,-151.0,0.00034,30]
[391893055,1760959847436,-151.0,0.00034003,30]
[391893056,1760959847445,-151.0,0.00034003,30]
[391893057,1760959847454,-151.0,0.00034003,30]
[391893058,1760959847463,-151.0,0.00034003,30]
[391893059,1760959847474,-219.803885,0.00034003,30]
[391893060,1760959847483,-219.803885,0.00034003,30]
[391893061,1760959847492,-219.803885,0.00034003,30]
[391893062,1760959847501,-823.86234,0.00034003,30]
[391893063,1760959847509,-219.803885,0.00034003,30]
[391893064,1760959847518,-823.86234,0.00034003,30]
[391893065,1760959847527,-151.0,0.00034003,30]
[391893066,1760959847536,-151.0,0.00034003,30]
[391893067,1760959847546,-823.86234,0.00034003,30]
[391893068,1760959847555,-823.86234,0.00034003,30]
[391893069,1760959847565,-180.921693,0.00034003,30]
[391893070,1760959847577,-151.0,0.00034003,30]
[391893071,1760959847586,-180.921693,0.00034003,30]
[391893072,1760959847596,-151.0,0.00034003,30]
[391893073,1760959847605,-180.921693,0.00034003,30]
[391893074,1760959847614,-151.0,0.00034003,30]
[391893075,1760959847623,-180.921693,0.00034003,30]
[391893076,1760959847632,-415.275717,0.00034003,15]
[391893077,1760959847641,-415.275717,0.00034003,15]
[391893078,1760959847650,-151.0,0.00034003,30]
[391893079,1760959847659,-415.275717,0.00034003,15]
[391893080,1760959847668,-415.275717,0.00034003,15]
[391893081,1760959847677,-1059.156503,0.00034003,30]
[391893082,1760959847686,-1059.156503,0.00034003,30]
[391893083,1760959847695,-151.0,0.00034003,30]
[391893084,1760959847704,-1059.156503,0.00034003,30]
[391893085,1760959847713,-151.0,0.00034003,30]
[391893086,1760959847722,-1059.156503,0.00034003,30]
[391893087,1760959847731,-151.0,0.00034003,30]
[391893088,1760959847740,-151.0,0.00034003,30]
[391893089,1760959847749,-435.042453,0.00034003,30]
[391893090,1760959847758,-158.829495,0.00034003,30]
[391893091,1760959847767,-1483.852699,0.00034003,30]
[391893092,1760959847776,-435.042453,0.00034003,30]
[391893093,1760959847784,-1483.852699,0.00034003,30]
[391893094,1760959847793,-435.042453,0.00034003,30]
[391893095,1760959847802,-1483.852699,0.00034003,30]
[391893096,1760959847811,-435.042453,0.00034003,30]
[391893097,1760959847820,-1638.368023,0.00034003,30]
[391893098,1760959847829,-1483.852699,0.00034003,30]
[391893099,1760959847838,-1638.368023,0.00034003,30]
[391893100,1760959847847,-1638.368023,0.00034003,30]
[391893101,1760959847856,-151.0,0.00034003,30]
[391893102,1760959847865,-1638.368023,0.00034003,30]
[391893103,1760959847874,-151.0,0.00034003,30]
[391893104,1760959847883,-151.0,0.00034003,30]
[391893105,1760959847892,-151.0,0.00034003,30]
[391893106,1760959847902,-151.0,0.00034003,30]
[391893107,1760959847911,-553.943476,0.00034003,30]
[391893108,1760959847920,-151.0,0.00034003,30]
[391893109,1760959847930,-553.943476,0.00034003,30]
[391893110,1760959847939,-553.943476,0.00034003,30]
[391893111,1760959847948,-151.0,0.00034003,30]
[391893112,1760959847957,-553.943476,0.00034003,30]
[391893113,1760959847966,-151.0,0.00034003,30]
[391893114,1760959847975,-151.0,0.00034003,30]
[391893115,1760959847984,-151.0,0.00034003,30]
[391893116,1760959847994,-151.0,0.00034003,30]
[391893117,1760959848003,-151.0,0.00034003,30]
[391893118,1760959848012,-203.456997,0.00034003,30]
[391893119,1760959848021,-151.0,0.00034003,30]
[391893120,1760959848030,-151.0,0.00034003,30]
[391893121,1760959848039,-203.456997,0.00034003,30]
[391893122,1760959848050,-203.456997,0.00034003,30]
[391893123,1760959848059,-151.0,0.00034003,30]
[391893124,1760959848068,-203.456997,0.00034003,30]
[391893125,1760959848077,-535.344894,0.00034003,30]
[391893126,1760959848086,-151.0,0.00034003,30]
[391893127,1760959848096,-151.0,0.00034003,30]
[391893128,1760959848105,-535.344894,0.00034003,30]
[391893129,1760959848114,-151.0,0.00034003,30]
[391893130,1760959848123,-535.344894,0.00034003,30]
[391893131,1760959848132,-535.344894,0.00034003,30]
[391893132,1760959848141,-222.651136,0.00034003,30]
[391893133,1760959848150,-222.651136,0.00034003,30]
[391893134,1760959848159,-151.0,0.00034003,30]
[391893135,1760959848168,-222.651136,0.00034003,30]
[391893136,1760959848176,-222.651136,0.00034003,30]
[391893137,1760959848185,-151.0,0.00034003,30]
[391893138,1760959848194,-151.0,0.00034003,30]
[391893139,1760959848203,-150.0,0.00034003,30]
[391893140,1760959848213,-2046820.4837,0.00034003,30]
[391893141,1760959848223,-156.096,0.00034003,2]
[391893142,1760959848232,-252.277079,0.00034003,10]
[391893143,1760959848241,-1050.55,0.00034003,30]
[391893144,1760959848251,-1050.55,0.00034003,31]
[391893145,1760959848259,-1050.55,0.00034003,32]
[391893146,1760959848269,-1050.55,0.00034003,33]
[391893147,1760959848278,-1050.55,0.00034003,34]
[391893148,1760959848287,-1050.55,0.00034003,35]
[391893149,1760959848298,-1050.55,0.00034003,36]
[391893150,1760959848308,-1050.55,0.00034003,37]
[391893151,1760959848317,-1050.55,0.00034003,38]
[391893152,1760959848326,-1050.55,0.00034003,39]
[391893153,1760959848335,-1050.55,0.00034003,40]
[391893154,1760959848344,-1050.55,0.00034003,41]
[391893155,1760959848353,-1050.55,0.00034003,42]
[391893156,1760959848362,-1050.55,0.00034003,43]
[391893157,1760959848372,-1050.55,0.00034003,44]
[391893158,1760959848381,-1050.55,0.00034003,45]
[391893159,1760959848390,-1050.55,0.00034003,46]
[391893160,1760959848399,-1050.55,0.00034003,47]
[391893161,1760959848408,-1050.55,0.00034003,48]
[391893162,1760959848418,-1050.55,0.00034003,49]
[391893163,1760959848427,-1050.55,0.00034003,49]
[391893164,1760959848436,-1050.55,0.00034003,49]
[391893165,1760959848445,-1050.55,0.00034003,49]
[391893166,1760959848454,-1050.63147275,0.00034003,49]
[391893167,1760959848463,-6395.875444,0.00034003,30]
[391893168,1760959848472,-941.25892401,0.00034003,5]
[391893169,1760959848481,-250.0,0.00034003,30]
[391893170,1760959848491,-300.0,0.00034003,30]
[391893171,1760959848500,-151.0,0.00034003,30]
[391893172,1760959848509,-500.0,0.00034003,30]
[391893173,1760959848518,-311.1,0.00034003,30]
[391893174,1760959848527,-250.0,0.00034003,30]
[391893175,1760959848536,-500.0,0.00034003,30]
[391893176,1760959848546,-151.0,0.00034003,30]
[391893177,1760959848554,-322.6107,0.00034003,30]
[391893178,1760959848563,-500.0,0.00034003,30]
[391893179,1760959848577,-151.0,0.00034003,30]
[391893180,1760959848586,-322.6107,0.00034003,30]
[391893181,1760959848595,-500.0,0.00034003,30]
[391893182,1760959848604,-151.0,0.00034003,30]
[391893183,1760959848614,-500.0,0.00034003,30]
[391893184,1760959848623,-11190.75002488,0.00034003,30]
[391893185,1760959848632,-151.0,0.00034003,30]
[391893186,1760959848642,-151.0,0.00034003,30]
[391893187,1760959848652,-500.0,0.00034003,30]
[391893188,1760959848661,-414.0,0.00034003,30]
[391893189,1760959848670,-500.0,0.00034003,30]
[391893190,1760959848679,-151.0,0.00034003,30]
[391893191,1760959848688,-429.318,0.00034003,30]
[391893192,1760959848697,-500.0,0.00034003,30]
[391893193,1760959848706,-151.0,0.00034003,30]
[391893194,1760959848715,-445.202766,0.00034003,30]
[391893195,1760959848725,-500.0,0.00034003,30]
[391893196,1760959848734,-151.0,0.00034003,30]
[391893197,1760959848743,-461.67526834,0.00034003,30]
[391893198,1760959848754,-151.0,0.00034003,30]
[391893199,1760959848765,-478.75725327,0.00034003,30]
[391893200,1760959848775,-500.0,0.00034003,30]
[391893201,1760959848785,-151.0,0.00034003,30]
[391893202,1760959848795,-496.47127164,0.00034003,30]
[391893203,1760959848806,-500.0,0.00034003,30]
[391893204,1760959848815,-514.84070869,0.00034003,30]
[391893205,1760959848826,-500.0,0.00034003,30]
[391893206,1760959848840,-151.0,0.00034003,30]
[391893207,1760959848851,-533.88981491,0.00034003,30]
[391893208,1760959848861,-500.0,0.00034003,30]
[391893209,1760959848870,-151.0,0.00034003,30]
[391893210,1760959848880,-151.0,0.00034003,30]
[391893211,1760959848889,-553.64373807,0.00034003,30]
[391893212,1760959848899,-500.0,0.00034003,30]
[391893213,1760959848908,-574.12855637,0.00034003,30]
[391893214,1760959848918,-151.0,0.00034003,30]
[391893215,1760959848927,-156.587,0.00034003,30]
[391893216,1760959848937,-500.0,0.00034003,30]
[391893217,1760959848947,-595.37131296,0.00034003,30]
[391893218,1760959848957,-151.0,0.00034003,30]
[391893219,1760959848966,-162.380719,0.00034003,30]
[391893220,1760959848977,-500.0,0.00034003,30]
[391893221,1760959848986,-617.40005154,0.00034003,30]
[391893222,1760959848995,-151.0,0.00034003,30]
[391893223,1760959849005,-500.0,0.00034003,30]
[391893224,1760959849014,-168.3888056,0.00034003,30]
[391893225,1760959849121,-640.24385345,0.00034003,30]
[391893226,1760959849141,-500.0,0.00034003,30]
[391893227,1760959849151,-174.61919141,0.00034003,30]
[391893228,1760959849160,-663.93287602,0.00034003,30]
[391893229,1760959849169,-500.0,0.00034003,30]
[391893230,1760959849179,-181.08010149,0.00034003,30]
[391893231,1760959849188,-688.49839244,0.00034003,30]
[391893232,1760959849198,-713.97283296,0.00034003,30]
[391893233,1760959849208,-250.0,0.00034003,30]
[391893234,1760959849216,-250.0,0.00034003,30]
[391893235,1760959849226,-740.38982778,0.00034003,30]
[391893236,1760959849235,-250.0,0.00034003,30]
[391893237,1760959849244,-767.7842514,0.00034003,30]
[391893238,1760959849253,-250.0,0.00034003,30]
[391893239,1760959849262,-796.19226871,0.00034003,30]
[391893240,1760959849271,-796.19226871,0.00034003,30]
[391893241,1760959849280,-187.78006525,0.00034003,30]
[391893242,1760959849289,-250.0,0.00034003,30]
[391893243,1760959849299,-194.72792766,0.00034003,30]
[391893244,1760959849308,-250.0,0.00034003,30]
[391893245,1760959849317,-201.93286099,0.00034003,30]
[391893246,1760959849326,-250.0,0.00034003,30]
[391893247,1760959849335,-250.0,0.00034003,30]
[391893248,1760959849344,-250.0,0.00034003,30]
[391893249,1760959849353,-209.40437684,0.00034003,30]
[391893250,1760959849363,-250.0,0.00034003,30]
[391893251,1760959849372,-250.0,0.00034003,30]
[391893252,1760959849381,-217.15233878,0.00034003,30]
[391893253,1760959849395,-250.0,0.00034003,30]
[391893254,1760959849403,-225.18697532,0.00034003,30]
[391893255,1760959849412,-250.0,0.00034003,30]
[391893256,1760959849421,-233.51889341,0.00034003,30]
[391893257,1760959849431,-250.0,0.00034003,30]
[391893258,1760959849445,-242.15909246,0.00034003,30]
[391893259,1760959849455,-250.0,0.00034003,30]
[391893260,1760959849464,-251.11897888,0.00034003,30]
[391893261,1760959849473,-250.0,0.00034003,30]
[391893262,1760959849482,-260.4103811,0.00034003,30]
[391893263,1760959849491,-250.0,0.00034003,30]
[391893264,1760959849500,-270.0455652,0.00034003,30]
[391893265,1760959849509,-250.0,0.00034003,30]
[391893266,1760959849518,-280.03725112,0.00034003,30]
[391893267,1760959849527,-250.0,0.00034003,30]
[391893268,1760959849536,-290.39862941,0.00034003,30]
[391893269,1760959849546,-250.0,0.00034003,30]
[391893270,1760959849555,-290.39862941,0.00034003,30]
[391893271,1760959849564,-250.0,0.00034003,30]
[391893272,1760959849576,-250.0,0.00034003,30]
[391893273,1760959849585,-151.0,0.00034012,30]
[391893274,1760959849594,-151.0,0.00034012,30]
[391893275,1760959849603,-500.0,0.00034012,30]
[391893276,1760959849612,-580.5971618,0.00034012,30]
[391893277,1760959849622,-151.0,0.00034012,30]
[391893278,1760959849631,-500.0,0.00034012,30]
[391893279,1760959849640,-500.0,0.00034012,30]
[391893280,1760959849650,-151.0,0.00034012,30]
[391893281,1760959849659,-500.0,0.00034012,30]
[391893282,1760959849668,-500.0,0.00034012,30]
[391893283,1760959849677,-560.46134789,0.00034012,30]
[391893284,1760959849686,-151.61557415,0.00034012,30]
[391893285,1760959849695,-151.0,0.00034012,30]
[391893286,1760959849704,-151.0,0.00034012,30]
[391893287,1760959849713,-156.588327,0.0003406,15]
[391893288,1760959849724,-242.22859,0.0003406,15]
[391893289,1760959849733,-212.10558,0.0003406,15]
[391893290,1760959849744,-156.588327,0.0003406,15]
[391893291,1760959849753,-152.29305162,0.00034067,30]
[391893292,1760959849762,-151.56260228,0.00034067,30]
[391893293,1760959849771,-500.0,0.00034067,30]
[391893294,1760959849781,-151.0,0.00034067,30]
[391893295,1760959849792,-500.0,0.00034067,30]
[391893296,1760959849801,-500.0,0.00034067,30]
[391893297,1760959849810,-249.29810661,0.00034067,30]
[391893298,1760959849820,-500.0,0.00034067,30]
[391893299,1760959849830,-500.0,0.00034067,30]
[391893300,1760959849840,-151.0,0.00034067,30]
[391893301,1760959849851,-151.0,0.00034067,30]
[391893302,1760959849860,-168.0,0.00034101,2]
[391893303,1760959849871,-500.0,0.00034121,30]
[391893304,1760959849882,-202.35749936,0.00034121,30]